bitfinex/quotes_BTCUSD_20250519
["timestamp","ask_amount","ask_price","bid_price","bid_amount"]
[1747683877266,0.71636586,105410.0,105400.0,0.00661584]
[1747683878532,0.71636586,105410.0,105400.0,0.19636916]
[1747683878740,0.71636586,105410.0,105400.0,0.20585664]
[1747683878941,0.70687919,105410.0,105400.0,0.20585664]
[1747683879529,0.70687919,105410.0,105400.0,0.01610341]
[1747683879730,0.70687919,105410.0,105400.0,0.20585673]
[1747683880641,0.69739243,105410.0,105400.0,0.20585673]
[1747683881008,0.69739243,105410.0,105400.0,0.21534421]
[1747683881215,0.69739243,105410.0,105400.0,0.20585673]
[1747683881728,0.68356532,105410.0,105400.0,0.45823124]
[1747683881936,0.66155199,105410.0,105400.0,0.41634712]
[1747683882146,0.66155199,105410.0,105400.0,0.21534412]
[1747683882347,0.68506568,105410.0,105400.0,0.45511273]
[1747683882831,0.7059791,105410.0,105400.0,0.44562516]
[1747683883191,0.7059791,105410.0,105400.0,0.20585682]
[1747683884454,0.7059791,105410.0,105400.0,0.21534439]
[1747683885123,0.3659791,105410.0,105400.0,0.74742939]
[1747683885333,0.3330991,105410.0,105400.0,0.75691678]
[1747683885758,0.3330991,105410.0,105400.0,0.59408978]
[1747683885972,0.3636991,105410.0,105400.0,0.32873739]
[1747683887068,0.3636991,105410.0,105400.0,0.29056109]
[1747683887375,0.3636991,105410.0,105400.0,0.18975332]
[1747683887810,0.3636991,105410.0,105400.0,0.19924089]
[1747683888825,0.3636991,105410.0,105400.0,0.20872855]
[1747683889037,0.3636991,105410.0,105400.0,0.21821603]
[1747683889508,0.3636991,105410.0,105400.0,0.22770342]
[1747683889663,0.3425855,105410.0,105400.0,0.21821603]
[1747683889875,0.3425855,105410.0,105400.0,0.22770342]
[1747683890100,0.3000991,105410.0,105400.0,0.22770342]
[1747683890301,0.29061243,105410.0,105400.0,0.22770342]
[1747683890733,0.29061243,105410.0,105400.0,0.24243402]
[1747683891776,0.01348622,105410.0,105400.0,1.50066748]
[1747683891989,0.0324583,105410.0,105400.0,1.90256694]
[1747683892190,0.05143119,105410.0,105400.0,1.54252094]
[1747683892394,0.05143119,105410.0,105400.0,1.23921794]
[1747683892607,0.05143119,105410.0,105400.0,1.04029394]
[1747683892782,0.0514311,105410.0,105400.0,1.04029394]
[1747683893010,0.05143173,105410.0,105400.0,1.00859394]
[1747683893547,0.05143173,105410.0,105400.0,1.04139394]
[1747683894399,0.04194515,105410.0,105400.0,1.04139394]
[1747683894633,0.004,105410.0,105400.0,1.07259394]
[1747683895037,0.01348604,105410.0,105400.0,1.07259394]
[1747683895218,0.004,105410.0,105400.0,1.07259394]
[1747683895413,0.01348604,105410.0,105400.0,1.07259394]
[1747683895873,0.02297226,105410.0,105400.0,1.07259394]
[1747683896078,0.01148604,105410.0,105400.0,1.04139394]
[1747683896288,0.02845857,105410.0,105400.0,1.00530994]
[1747683896511,0.1992218,105410.0,105400.0,0.0052433]
[1747683896726,0.22770225,105400.0,105390.0,0.4777075]
[1747683896948,0.03794884,105400.0,105390.0,1.70510145]
[1747683897203,0.22770288,105400.0,105390.0,1.64493752]
[1747683897413,0.23719054,105400.0,105390.0,1.28194352]
[1747683897635,0.02846199,105400.0,105390.0,0.94267145]
[1747683897862,0.02846199,105400.0,105390.0,0.96784324]
[1747683898117,0.20872819,105400.0,105390.0,1.35765741]
[1747683898362,0.20872819,105400.0,105390.0,1.36814561]
[1747683898570,0.20872819,105400.0,105390.0,1.37763372]
[1747683899564,0.20872819,105400.0,105390.0,0.87645741]
[1747683899756,0.20872819,105400.0,105390.0,1.35865741]
[1747683900115,0.20872819,105400.0,105390.0,1.3634916]
[1747683900327,0.23932819,105400.0,105390.0,1.3634916]
[1747683901130,0.23932819,105400.0,105390.0,1.37297971]
[1747683901576,0.23932819,105400.0,105390.0,1.35400331]
[1747683901782,0.23932819,105400.0,105390.0,1.36349169]
[1747683902002,0.3590502,105400.0,105390.0,0.31578543]
[1747683902212,0.3590502,105400.0,105390.0,0.31095124]
[1747683902421,0.3590502,105400.0,105390.0,0.66787109]
[1747683902422,0.11628355,105400.0,105390.0,0.66787109]
[1747683902695,0.21821459,105400.0,105390.0,0.65168501]
[1747683902915,0.27028982,105400.0,105390.0,0.98623109]
[1747683903136,0.07104884,105400.0,105390.0,0.98623109]
[1747683903352,0.23718982,105400.0,105390.0,0.98623109]
[1747683904328,0.04743632,105400.0,105390.0,1.33571902]
[1747683904529,0.2727082,105410.0,105400.0,0.1992408]
[1747683904731,0.36053147,105410.0,105400.0,0.71972904]
[1747683904884,0.36053147,105410.0,105400.0,0.72921634]
[1747683905298,0.36053147,105410.0,105400.0,0.73870337]
[1747683905299,0.01897244,105410.0,105400.0,0.73870337]
[1747683905705,0.01897244,105410.0,105400.0,0.77000337]
[1747683905913,0.01897253,105410.0,105400.0,0.77000337]
[1747683906110,0.01897244,105410.0,105400.0,0.77000337]
[1747683906319,0.02845884,105410.0,105400.0,0.77000337]
[1747683906763,0.02845884,105410.0,105400.0,0.73870337]
[1747683907169,0.01897235,105410.0,105400.0,0.73870337]
[1747683907405,0.22768055,105410.0,105400.0,0.70234634]
[1747683907613,0.11303191,105410.0,105400.0,0.22716646]
[1747683907817,0.11303191,105410.0,105400.0,0.19870456]
[1747683907818,0.27430856,105410.0,105400.0,0.19870456]
[1747683908020,0.27430856,105410.0,105400.0,0.20819222]
[1747683908220,0.37161796,105410.0,105400.0,0.00895124]
[1747683908638,0.37161796,105410.0,105400.0,0.19870456]
[1747683909053,0.36213138,105410.0,105400.0,0.19924098]
[1747683909346,0.35264471,105410.0,105400.0,0.00948766]
[1747683909590,0.35264471,105410.0,105400.0,0.19924098]
[1747683909799,0.02846118,105400.0,105390.0,0.8827456]
[1747683910007,0.03794902,105400.0,105390.0,1.43860939]
[1747683910193,0.22770234,105400.0,105390.0,1.12800639]
[1747683910336,0.21821567,105400.0,105390.0,1.11851828]
[1747683910537,0.21821567,105400.0,105390.0,1.44939857]
[1747683910981,0.21821567,105400.0,105390.0,1.45988677]
[1747683911217,0.00948703,105400.0,105390.0,1.50297398]
[1747683911386,0.25141816,105420.0,105410.0,0.19922198]
[1747683911598,0.31742756,105420.0,105410.0,0.20870856]
[1747683911802,0.31742756,105420.0,105410.0,0.2176598]
[1747683912059,0.19920291,105420.0,105410.0,0.6307302]
[1747683912184,0.20868868,105420.0,105410.0,0.6307302]
[1747683912383,0.21068868,105420.0,105410.0,0.6307302]
[1747683913001,0.01148541,105420.0,105410.0,0.6307302]
[1747683913217,0.002,105420.0,105410.0,1.35951633]
[1747683913408,0.02097037,105420.0,105410.0,1.39031633]
[1747683913617,0.01348505,105420.0,105410.0,1.39031633]
[1747683913964,0.0324556,105420.0,105410.0,1.35951633]
[1747683914097,0.03245551,105420.0,105410.0,1.35951633]
[1747683914776,0.03245551,105420.0,105410.0,1.37071301]
[1747683916339,0.04194101,105420.0,105410.0,1.37071301]
[1747683916801,0.0324556,105420.0,105410.0,1.37071301]
[1747683917837,0.0419411,105420.0,105410.0,1.37071301]
[1747683918606,0.0399411,105420.0,105410.0,1.37071301]
[1747683918896,0.0379411,105420.0,105410.0,1.37071301]
[1747683920764,0.0379411,105420.0,105410.0,1.33901301]
[1747683920957,0.0379411,105420.0,105410.0,1.19568401]
[1747683921173,0.22765905,105420.0,105410.0,0.75947188]
[1747683921378,0.2707885,105420.0,105410.0,0.70770792]
[1747683921582,0.2707885,105420.0,105410.0,0.50234792]
[1747683922332,0.2707885,105420.0,105410.0,0.36014792]
[1747683923385,0.3680979,105420.0,105410.0,0.17129563]
[1747683923579,0.3680979,105420.0,105410.0,0.01119668]
[1747683923815,0.2087082,105410.0,105400.0,0.56577513]
[1747683923992,0.21819496,105410.0,105400.0,0.99885613]
[1747683924435,0.21819496,105410.0,105400.0,0.71540313]
[1747683924637,0.01897271,105410.0,105400.0,0.93139016]
[1747683924943,0.01897271,105410.0,105400.0,0.58483016]
[1747683925260,0.00948514,105420.0,105410.0,0.21819451]
[1747683925471,0.98897109,105430.0,105420.0,0.20868886]
[1747683925675,0.98901881,105430.0,105420.0,0.21817445]
[1747683926264,0.98901881,105430.0,105420.0,0.22774791]
[1747683926265,0.78983392,105430.0,105420.0,0.22774791]
[1747683926474,0.92531802,105430.0,105420.0,0.24671864]
[1747683926686,0.94428785,105430.0,105420.0,0.24671864]
[1747683926849,0.94628785,105430.0,105420.0,0.24671864]
[1747683927051,0.94628785,105430.0,105420.0,0.23723341]
[1747683927291,0.94828785,105430.0,105420.0,0.24671882]
[1747683927508,0.71116499,105430.0,105420.0,1.00859219]
[1747683927649,0.71116499,105430.0,105420.0,1.01451543]
[1747683927850,0.72064914,105430.0,105420.0,1.01451543]
[1747683928161,0.72064914,105430.0,105420.0,1.39377543]
[1747683928366,0.73013338,105430.0,105420.0,1.39377543]
[1747683928597,0.71116499,105430.0,105420.0,1.39377543]
[1747683928777,0.72064923,105430.0,105420.0,1.39377543]
[1747683929201,0.73013365,105430.0,105420.0,1.39377543]
[1747683930098,0.71116499,105430.0,105420.0,1.73377543]
[1747683930501,0.72064914,105430.0,105420.0,1.73377543]
[1747683930821,0.73013347,105430.0,105420.0,1.73377543]
[1747683932049,0.73013347,105430.0,105420.0,1.70207543]
[1747683932572,0.73961789,105430.0,105420.0,1.70207543]
[1747683933001,0.73961789,105430.0,105420.0,1.67147543]
[1747683935328,0.72064914,105430.0,105420.0,1.70367543]
[1747683935532,0.73013356,105430.0,105420.0,1.70367543]
[1747683935734,0.73013356,105430.0,105420.0,1.71263838]
[1747683935935,0.72064914,105430.0,105420.0,1.71263838]
[1747683936144,0.73013347,105430.0,105420.0,1.71263838]
[1747683937096,0.73013347,105430.0,105420.0,1.72383506]
[1747683937537,0.73013347,105430.0,105420.0,1.72816916]
[1747683937958,0.73013347,105430.0,105420.0,1.58596916]
[1747683938166,0.73013347,105430.0,105420.0,1.69592916]
[1747683938376,0.74910294,105430.0,105420.0,1.69592916]
[1747683938598,0.74910285,105430.0,105420.0,1.49056916]
[1747683938894,0.73961807,105430.0,105420.0,1.4809957]
[1747683939698,0.74910285,105430.0,105420.0,1.4809957]
[1747683940029,0.73961807,105430.0,105420.0,1.4809957]
[1747683940234,0.74910285,105430.0,105420.0,1.23548276]
[1747683940413,0.74910285,105430.0,105420.0,1.44417099]
[1747683940650,0.74910285,105430.0,105420.0,1.46314226]
[1747683942120,0.77920285,105430.0,105420.0,1.46314226]
[1747683942918,0.74910285,105430.0,105420.0,1.46314226]
[1747683943553,0.94828704,105430.0,105420.0,1.46314226]
[1747683943950,0.75858772,105430.0,105420.0,1.46314226]
[1747683944565,0.75858772,105430.0,105420.0,1.46173799]
[1747683945485,0.94828704,105430.0,105420.0,1.27215058]
[1747683945696,0.99291856,105430.0,105420.0,1.62024024]
[1747683945894,0.99291856,105430.0,105420.0,1.62972592]
[1747683949844,0.99291856,105430.0,105420.0,1.06515129]
[1747683949845,0.97394918,105430.0,105420.0,1.06515129]
[1747683950389,1.07125858,105430.0,105420.0,0.48224029]
[1747683950632,1.07125858,105430.0,105420.0,0.01922029]
[1747683951117,1.07125858,105430.0,105420.0,0.35922029]
[1747683952107,1.06877858,105430.0,105420.0,0.35922029]
[1747683959856,1.06877858,105430.0,105420.0,0.55842329]
[1747683960064,1.06877858,105430.0,105420.0,0.54893761]
[1747683960256,1.06877858,105430.0,105420.0,0.55842347]
[1747683960558,1.05929371,105430.0,105420.0,0.35922029]
[1747683963842,1.05929371,105430.0,105420.0,0.01922029]
[1747683965000,1.05929371,105430.0,105420.0,0.01025734]
[1747683965747,0.01897217,105410.0,105400.0,1.0086421]
[1747683966016,0.7916541,105430.0,105410.0,0.24030784]
[1747683966238,1.07867627,105430.0,105420.0,0.19920318]
[1747683966445,0.18971732,105420.0,105410.0,0.54030838]
[1747683966650,0.18971732,105420.0,105410.0,0.49922198]
[1747683967117,0.18971732,105420.0,105410.0,0.64142198]
[1747683967331,0.18971732,105420.0,105410.0,0.51767192]
[1747683967749,0.18971732,105420.0,105410.0,0.86715841]
[1747683968814,0.199203,105420.0,105410.0,1.86376772]
[1747683969026,0.72565392,105430.0,105420.0,0.62257382]
[1747683969240,0.7446233,105430.0,105420.0,0.58148859]
[1747683969446,0.93432262,105430.0,105420.0,0.55765195]
[1747683969657,0.93432262,105430.0,105420.0,0.57662268]
[1747683969658,0.94380758,105430.0,105420.0,0.57662268]
[1747683969862,0.93432325,105430.0,105420.0,0.56713736]
[1747683970288,0.97092325,105430.0,105420.0,1.05907359]
[1747683970502,1.04926354,105430.0,105420.0,0.53868068]
[1747683970706,1.08136354,105430.0,105420.0,0.54816645]
[1747683971130,1.01666354,105430.0,105420.0,0.55765195]
[1747683971334,0.72965392,105430.0,105420.0,1.12932827]
[1747683971577,0.72965383,105430.0,105420.0,1.1388135]
[1747683971753,0.73913861,105430.0,105420.0,1.1693135]
[1747683971976,0.92883793,105430.0,105420.0,1.1388135]
[1747683972156,0.9383228,105430.0,105420.0,1.1388135]
[1747683972377,0.73913861,105430.0,105420.0,1.1388135]
[1747683973171,0.93832289,105430.0,105420.0,1.1388135]
[1747683973368,0.93832289,105430.0,105420.0,1.07915745]
[1747683973569,0.91935405,105430.0,105420.0,0.34896336]
[1747683973952,1.07656345,105430.0,105420.0,0.34896336]
[1747683974557,1.07456345,105430.0,105420.0,0.34896336]
[1747683975436,1.07456345,105430.0,105420.0,0.00896336]
[1747683977802,1.07456345,105430.0,105420.0,0.01488739]
[1747683978002,1.55492265,105430.0,105420.0,0.01488739]
[1747683978217,1.2312643,105430.0,105420.0,0.00896336]
[1747683978868,0.2730082,105410.0,105400.0,0.49504738]
[1747683979219,0.3703176,105410.0,105400.0,0.35288738]
[1747683979465,0.3703176,105410.0,105400.0,0.01881209]
[1747683979749,0.38485845,105410.0,105400.0,0.01546602]
[1747683980550,0.38485845,105410.0,105400.0,0.01646602]
[1747683980801,0.38485845,105410.0,105400.0,0.01746602]
[1747683984967,0.38485845,105410.0,105400.0,0.00792471]
[1747683985602,0.38485845,105410.0,105400.0,0.00692471]
[1747683985815,0.38485845,105410.0,105400.0,0.001]
[1747683986023,0.38685845,105410.0,105400.0,0.001]
[1747683986431,0.25133619,105390.0,105380.0,0.54720287]
[1747683986636,0.34864559,105390.0,105380.0,1.51848387]
[1747683987051,0.34864559,105390.0,105380.0,1.5274297]
[1747683987266,0.38134559,105390.0,105380.0,1.51794033]
[1747683987593,0.37185757,105390.0,105380.0,1.51794033]
[1747683987741,0.37185757,105390.0,105380.0,1.52859699]
[1747683987949,0.37185757,105390.0,105380.0,0.9107889]
[1747683988174,0.37185757,105390.0,105380.0,0.9117889]
[1747683988381,0.37185757,105390.0,105380.0,0.7833089]
[1747683988648,0.37185757,105390.0,105380.0,0.78330763]
[1747683990297,0.37185757,105390.0,105380.0,0.78321988]
[1747683990707,0.37185757,105390.0,105380.0,0.02843888]
[1747683991776,0.37185757,105390.0,105380.0,0.01949305]
[1747683992389,0.37185757,105390.0,105380.0,0.01940537]
[1747683994169,0.37185757,105390.0,105380.0,0.01347996]
[1747683995756,0.19927861,105380.0,105370.0,0.55824739]
[1747683995973,0.29658801,105380.0,105370.0,0.55833795]
[1747683996371,0.32768801,105380.0,105370.0,0.54829283]
[1747683996575,0.32768801,105380.0,105370.0,0.54475887]
[1747683996824,0.31819873,105380.0,105370.0,0.54475887]
[1747683997266,0.31819873,105380.0,105370.0,0.55724923]
[1747683997488,0.31819873,105380.0,105370.0,0.54831435]
[1747683998264,0.31819873,105380.0,105370.0,0.34901665]
[1747683998492,0.31819873,105380.0,105370.0,0.54831435]
[1747683998935,0.31819873,105380.0,105370.0,0.55131435]
[1747684000007,0.31819873,105380.0,105370.0,0.36150701]
[1747684000233,0.34989873,105380.0,105370.0,0.35201665]
[1747684000426,0.34989873,105380.0,105370.0,0.36155118]
[1747684000892,0.31819873,105380.0,105370.0,0.55135852]
[1747684001110,0.28709873,105380.0,105370.0,0.5608487]
[1747684001295,0.28709873,105380.0,105370.0,0.57033879]
[1747684001544,0.29658801,105380.0,105370.0,0.56084879]
[1747684002625,0.29658801,105380.0,105370.0,0.56978925]
[1747684003342,0.28709873,105380.0,105370.0,0.56978925]
[1747684005303,0.28709873,105380.0,105370.0,0.56029898]
[1747684006051,0.31819873,105380.0,105370.0,0.56029898]
[1747684007443,0.28709873,105380.0,105370.0,0.56029898]
[1747684007670,0.28709873,105380.0,105370.0,0.56978925]
[1747684011642,0.31789873,105380.0,105370.0,0.56978925]
[1747684013152,0.28709873,105380.0,105370.0,0.57927934]
[1747684014235,0.31899873,105380.0,105370.0,0.57927934]
[1747684014453,0.28709873,105380.0,105370.0,0.57927934]
[1747684016253,0.10679832,105380.0,105370.0,0.63135907]
[1747684016462,0.01897631,105390.0,105380.0,0.62384471]
[1747684016669,0.03795262,105390.0,105380.0,2.46002772]
[1747684016873,0.03795262,105390.0,105380.0,1.98510172]
[1747684017291,0.03795253,105390.0,105380.0,1.99102781]
[1747684017729,0.18976953,105400.0,105390.0,0.25063574]
[1747684017730,0.20872765,105400.0,105390.0,0.25063574]
[1747684017945,0.02846181,105400.0,105390.0,1.59905774]
[1747684018163,0.02846181,105400.0,105390.0,1.58422083]
[1747684018379,0.22770279,105400.0,105390.0,0.71617979]
[1747684018593,0.22770279,105400.0,105390.0,0.6792931]
[1747684018828,0.22770279,105400.0,105390.0,0.49345709]
[1747684019047,0.22770279,105400.0,105390.0,0.34592609]
[1747684019048,0.24012846,105400.0,105390.0,0.34592609]
[1747684019260,0.23876846,105400.0,105390.0,0.55412643]
[1747684019476,0.23876846,105400.0,105390.0,0.68984043]
[1747684019688,0.35925038,105400.0,105390.0,0.49058055]
[1747684019902,0.35925038,105400.0,105390.0,0.35486655]
[1747684020126,0.32895038,105400.0,105390.0,0.54463787]
[1747684020339,0.32895038,105400.0,105390.0,0.35486655]
[1747684020559,0.29755038,105400.0,105390.0,0.83174572]
[1747684020778,0.3165248,105400.0,105390.0,0.85072221]
[1747684021248,0.3165248,105400.0,105390.0,0.51072221]
[1747684021556,0.30703768,105400.0,105390.0,0.41433101]
[1747684021766,0.35196272,105400.0,105390.0,0.12230655]
[1747684021976,0.35196272,105400.0,105390.0,0.01486655]
[1747684022639,0.35196272,105400.0,105390.0,0.12480655]
[1747684023485,0.35196272,105400.0,105390.0,0.01486655]
[1747684024116,0.35196272,105400.0,105390.0,0.12480655]
[1747684024872,0.35196272,105400.0,105390.0,0.01486655]
[1747684025524,0.35196272,105400.0,105390.0,0.12462055]
[1747684026488,0.35196272,105400.0,105390.0,0.01486655]
[1747684027113,0.35196272,105400.0,105390.0,0.12371555]
[1747684028058,0.35196272,105400.0,105390.0,0.27831055]
[1747684028273,0.31906272,105400.0,105390.0,0.24287355]
[1747684028682,0.31906272,105400.0,105390.0,0.13008355]
[1747684028901,0.31906272,105400.0,105390.0,0.01486655]
[1747684029141,0.31906272,105400.0,105390.0,0.46858187]
[1747684029383,0.35196272,105400.0,105390.0,0.01486655]
[1747684029829,0.35196272,105400.0,105390.0,0.01781102]
[1747684030038,0.36650357,105400.0,105390.0,0.01781102]
[1747684030681,1.0302807,105400.0,105390.0,0.01781102]
[1747684030886,1.0302807,105400.0,105390.0,0.00887056]
[1747684031137,0.70650357,105400.0,105390.0,0.00887056]
[1747684031343,0.70650357,105400.0,105390.0,0.00294447]
[1747684035915,1.0302807,105400.0,105390.0,0.00294447]
[1747684036325,0.70650357,105400.0,105390.0,0.00294447]
[1747684039726,0.91911271,105400.0,105390.0,0.00294447]
[1747684040960,0.92811271,105400.0,105390.0,0.00294447]
[1747684041246,0.93011271,105400.0,105390.0,0.00294447]
[1747684041430,1.14472185,105400.0,105390.0,0.00294447]
[1747684042571,1.14072185,105400.0,105390.0,0.00294447]
[1747684042787,1.14872185,105400.0,105390.0,0.00294447]
[1747684043446,0.72350357,105400.0,105390.0,0.00294447]
[1747684043666,1.14872185,105400.0,105390.0,0.00294447]
[1747684043885,1.04752454,105400.0,105390.0,0.00294447]
[1747684044107,1.39140454,105400.0,105390.0,0.00294447]
[1747684045262,1.48871394,105400.0,105390.0,0.00294447]
[1747684045494,1.39140454,105400.0,105390.0,0.00294447]
[1747684060328,0.18984337,105350.0,105340.0,0.44718713]
[1747684060537,0.18984337,105350.0,105340.0,1.16135564]
[1747684061043,0.18984337,105350.0,105340.0,1.17030748]
[1747684061480,0.18984337,105350.0,105340.0,1.14072448]
[1747684061669,0.18993383,105350.0,105340.0,1.14072448]
[1747684061889,0.1994259,105350.0,105340.0,1.14572448]
[1747684062110,0.1994259,105350.0,105340.0,1.15072448]
[1747684063369,0.1994259,105350.0,105340.0,1.14123151]
[1747684063543,0.1994259,105350.0,105340.0,0.94006711]
[1747684063724,0.1994259,105350.0,105340.0,0.66637904]
[1747684064137,0.2967353,105350.0,105340.0,0.09554804]
[1747684064339,0.2967353,105350.0,105340.0,0.03414804]
[1747684065066,0.2967353,105350.0,105340.0,0.02414804]
[1747684065381,0.2967353,105350.0,105340.0,0.02906034]
[1747684065495,0.2967353,105350.0,105340.0,0.03406034]
[1747684065699,0.2967353,105350.0,105340.0,0.02906034]
[1747684065964,0.2967353,105350.0,105340.0,0.03106034]
[1747684066161,0.2967353,105350.0,105340.0,0.0221085]
[1747684066593,0.2967353,105350.0,105340.0,0.0171085]
[1747684067035,0.37617615,105350.0,105340.0,0.0191085]
[1747684067993,0.37617615,105350.0,105340.0,0.0171085]
[1747684068389,0.37617615,105350.0,105340.0,0.0151085]
[1747684069164,0.34297615,105350.0,105340.0,0.0151085]
[1747684069377,0.31127615,105350.0,105340.0,0.0151085]
[1747684072692,0.31127615,105350.0,105340.0,0.02407183]
[1747684075235,0.31127615,105350.0,105340.0,0.0151085]
[1747684075881,0.19935428,105340.0,105330.0,0.2002588]
[1747684076031,0.29666368,105340.0,105330.0,0.36034297]
[1747684076238,0.29666368,105340.0,105330.0,0.32434297]
[1747684076996,0.29666368,105340.0,105330.0,0.32634297]
[1747684077168,0.29666368,105340.0,105330.0,0.35396381]
[1747684078128,0.29666368,105340.0,105330.0,0.12006982]
[1747684078332,0.29666368,105340.0,105330.0,0.42586884]
[1747684078542,0.29666368,105340.0,105330.0,0.34576184]
[1747684078712,0.29666368,105340.0,105330.0,0.53564126]
[1747684078913,0.29666368,105340.0,105330.0,0.54513523]
[1747684079687,0.30615647,105340.0,105330.0,0.54513523]
[1747684079866,0.29666368,105340.0,105330.0,0.54513523]
[1747684080067,0.29666368,105340.0,105330.0,0.58591606]
[1747684080068,0.00949261,105340.0,105330.0,0.58591606]
[1747684080269,0.02847774,105340.0,105330.0,0.58591606]
[1747684080513,0.02847774,105340.0,105330.0,0.78687606]
[1747684080690,0.03797062,105340.0,105330.0,0.78687606]
[1747684080893,0.02847774,105340.0,105330.0,0.78687606]
[1747684081096,0.02847783,105340.0,105330.0,0.78687606]
[1747684081293,0.02847783,105340.0,105330.0,0.78911091]
[1747684081745,0.02847774,105340.0,105330.0,0.78911091]
[1747684082151,0.01907415,105350.0,105340.0,0.2306395]
[1747684082367,0.03805775,105350.0,105340.0,1.4241985]
[1747684082566,0.23739328,105350.0,105340.0,1.42419868]
[1747684083144,0.23739328,105350.0,105340.0,1.43316017]
[1747684083589,0.23730282,105350.0,105340.0,1.43316017]
[1747684083794,0.23547328,105350.0,105340.0,1.43316017]
[1747684083920,0.22598175,105350.0,105340.0,1.43316017]
[1747684084902,0.21649004,105350.0,105340.0,1.42366756]
[1747684085071,0.21649004,105350.0,105340.0,1.40468189]
[1747684085246,0.21649004,105350.0,105340.0,1.25257489]
[1747684085735,0.21649004,105350.0,105340.0,1.27156065]
[1747684085877,0.2088276,105350.0,105340.0,1.27156065]
[1747684086288,0.2088276,105350.0,105340.0,1.25926065]
[1747684087731,0.2088276,105350.0,105340.0,1.24976786]
[1747684087958,0.19933553,105350.0,105340.0,1.24976786]
[1747684089711,0.19933553,105350.0,105340.0,1.25926074]
[1747684089867,0.18984337,105350.0,105340.0,1.24976786]
[1747684090656,0.18984337,105350.0,105340.0,1.58976786]
[1747684092002,0.18984337,105350.0,105340.0,1.01811886]
[1747684092205,0.35095277,105350.0,105340.0,0.34896149]
[1747684092640,0.35095277,105350.0,105340.0,0.00896149]
[1747684093748,0.36549362,105350.0,105340.0,0.00896149]
[1747684094338,0.1301094,105350.0,105340.0,0.55780875]
[1747684094538,0.02847513,105350.0,105340.0,2.27590745]
[1747684094716,0.22781066,105350.0,105340.0,1.77040793]
[1747684094919,0.22781066,105350.0,105340.0,1.56156049]
[1747684095127,0.21831922,105350.0,105340.0,1.03547056]
[1747684095322,0.21831922,105350.0,105340.0,1.02597749]
[1747684095531,0.21831922,105350.0,105340.0,0.87182032]
[1747684095726,0.21831922,105350.0,105340.0,1.07321343]
[1747684095931,0.20882751,105350.0,105340.0,1.07321343]
[1747684096926,0.20882751,105350.0,105340.0,1.12061343]
[1747684098011,0.20882751,105350.0,105340.0,1.11112046]
[1747684098222,0.19933553,105350.0,105340.0,1.41112046]
[1747684099604,0.19933553,105350.0,105340.0,1.42061343]
[1747684099820,0.20882742,105350.0,105340.0,1.43010631]
[1747684100029,0.20882742,105350.0,105340.0,1.43959892]
[1747684100674,0.24122742,105350.0,105340.0,1.43959892]
[1747684102032,0.05128135,105360.0,105350.0,0.54882688]
[1747684102238,0.02847243,105360.0,105350.0,1.28622287]
[1747684102447,0.2182977,105360.0,105350.0,1.27673134]
[1747684102662,0.26008896,105360.0,105350.0,0.88230134]
[1747684102874,0.29218896,105360.0,105350.0,0.88230134]
[1747684103082,0.29218896,105360.0,105350.0,0.84483896]
[1747684103291,0.29318896,105360.0,105350.0,0.84483896]
[1747684103496,0.29318896,105360.0,105350.0,0.95304596]
[1747684103676,0.07126342,105360.0,105350.0,0.98267974]
[1747684103884,0.07226342,105360.0,105350.0,0.98267974]
[1747684104078,0.03996342,105360.0,105350.0,0.98267974]
[1747684104355,0.04945459,105360.0,105350.0,0.98267974]
[1747684104552,0.30368067,105360.0,105350.0,0.96369659]
[1747684104760,0.30368067,105360.0,105350.0,0.97318821]
[1747684107908,0.09487288,105360.0,105350.0,0.97522676]
[1747684108105,0.07226405,105360.0,105350.0,1.18487829]
[1747684108370,0.002,105360.0,105350.0,1.19717829]
[1747684108843,0.01149045,105360.0,105350.0,1.19717829]
[1747684109078,0.02098108,105360.0,105350.0,1.19717829]
[1747684109318,0.01998117,105360.0,105350.0,1.19717829]
[1747684109754,0.01998117,105360.0,105350.0,1.18487829]
[1747684109984,0.01898117,105360.0,105350.0,1.18283974]
[1747684110223,0.01898108,105360.0,105350.0,1.18463922]
[1747684110449,0.09436991,105370.0,105360.0,0.55829806]
[1747684110663,0.30315788,105370.0,105360.0,1.54283806]
[1747684110902,0.30315788,105370.0,105360.0,1.54463737]
[1747684111519,0.09436991,105370.0,105360.0,1.54463737]
[1747684111743,0.002,105370.0,105360.0,1.54463737]
[1747684111958,0.002,105370.0,105360.0,1.55693737]
[1747684112183,0.02097928,105370.0,105360.0,1.54463737]
[1747684112403,0.02097928,105370.0,105360.0,1.55359886]
[1747684112851,0.02097919,105370.0,105360.0,1.55359886]
[1747684113003,0.03046901,105370.0,105360.0,1.89603886]
[1747684113231,0.002,105370.0,105360.0,1.89603886]
[1747684113624,0.002,105370.0,105360.0,1.91951962]
[1747684113839,0.01148964,105370.0,105360.0,1.91951962]
[1747684114051,0.02097946,105370.0,105360.0,1.90721962]
[1747684114769,0.02097946,105370.0,105360.0,1.92136313]
[1747684114984,0.01148964,105370.0,105360.0,1.92136313]
[1747684115203,0.02097937,105370.0,105360.0,1.92136313]
[1747684115830,0.08417937,105370.0,105360.0,1.80207513]
[1747684115977,0.07468973,105370.0,105360.0,1.64379213]
[1747684116396,0.04198973,105370.0,105360.0,1.64379213]
[1747684116773,0.07468973,105370.0,105360.0,1.64379213]
[1747684117159,0.07468973,105370.0,105360.0,1.63354013]
[1747684117330,0.08417964,105370.0,105360.0,1.61163513]
[1747684117565,0.07468973,105370.0,105360.0,1.61163513]
[1747684118266,0.08417955,105370.0,105360.0,1.61163513]
[1747684118738,0.07468973,105370.0,105360.0,1.61163513]
[1747684118948,0.08417964,105370.0,105360.0,1.61163513]
[1747684119393,0.07468973,105370.0,105360.0,1.61163513]
[1747684119596,0.29296743,105370.0,105360.0,0.75188692]
[1747684119804,0.2834777,105370.0,105360.0,0.69942708]
[1747684119981,0.2834777,105370.0,105360.0,1.04178717]
[1747684120284,0.27398779,105370.0,105360.0,1.04178717]
[1747684120700,0.2644977,105370.0,105360.0,0.49061956]
[1747684120907,0.2644977,105370.0,105360.0,0.63285956]
[1747684121121,0.43783466,105370.0,105360.0,0.36194156]
[1747684121340,0.43783466,105370.0,105360.0,0.02194156]
[1747684121774,0.45237551,105370.0,105360.0,0.02194156]
[1747684122647,0.45237551,105370.0,105360.0,0.0107608]
[1747684123087,0.45237551,105370.0,105360.0,0.00896149]
[1747684125310,0.37634795,105370.0,105360.0,0.00896149]
[1747684127299,0.08248117,105360.0,105350.0,0.37860136]
[1747684127514,0.17979057,105360.0,105350.0,1.06017368]
[1747684127727,0.17979057,105360.0,105350.0,0.93157568]
[1747684127929,0.18928165,105360.0,105350.0,0.77276757]
[1747684128163,0.19877264,105360.0,105350.0,0.76327613]
[1747684128311,0.39808998,105360.0,105350.0,0.73410013]
[1747684128673,0.39808998,105360.0,105350.0,0.73810013]
[1747684130986,0.39808998,105360.0,105350.0,0.7286086]
[1747684131155,0.39808998,105360.0,105350.0,0.71911698]
[1747684131347,0.38859926,105360.0,105350.0,0.71911698]
[1747684132364,0.38859926,105360.0,105350.0,0.72860851]
[1747684132575,0.38859926,105360.0,105350.0,0.7286086]
[1747684134602,0.38859926,105360.0,105350.0,0.71911698]
[1747684135289,0.38859926,105360.0,105350.0,0.68365598]